[Event "*** SCC Grand Prix: Titled Tuesday Blitz"]
[Site "Chess.com"]
[Date "2020.06.02"]
[Round "6"]
[White "Pomegranate988"]
[Black "jorquerino"]
[Result "0-1"]
[WhiteElo "2529"]
[BlackElo "2349"]
[TimeControl "180+1"]
[EndTime "11:10:02 PDT"]
[Termination "jorquerino won on time"]

1. Nf3 {[%clk 0:03:00]} 1... Nf6 {[%clk 0:02:56.7]} 2. g3 {[%clk 0:02:59.6]}
2... g6 {[%clk 0:02:54.3]} 3. Bg2 {[%clk 0:02:59.5]} 3... Bg7 {[%clk 0:02:54.7]}
4. O-O {[%clk 0:02:59.3]} 4... O-O {[%clk 0:02:54.7]} 5. c4 {[%clk 0:02:59.5]}
5... d6 {[%clk 0:02:51.3]} 6. d4 {[%clk 0:02:55.8]} 6... Nc6 {[%clk 0:02:44.6]}
7. Nc3 {[%clk 0:02:49.3]} 7... Bd7 {[%clk 0:02:43.8]} 8. e3 {[%clk 0:02:47.5]}
8... Qc8 {[%clk 0:02:41.9]} 9. Re1 {[%clk 0:02:45.5]} 9... e5 {[%clk 0:02:31.2]}
10. b3 {[%clk 0:02:40.7]} 10... Re8 {[%clk 0:02:27.6]} 11. Bb2 {[%clk
0:02:38.5]} 11... Bg4 {[%clk 0:01:44.8]} 12. d5 {[%clk 0:02:14.9]} 12... Ne7
{[%clk 0:01:37.9]} 13. e4 {[%clk 0:02:13.4]} 13... Nh5 {[%clk 0:01:23.7]} 14.
Qd2 {[%clk 0:02:07.4]} 14... Bh3 {[%clk 0:01:18.9]} 15. b4 {[%clk 0:02:01.8]}
15... Bxg2 {[%clk 0:01:16.6]} 16. Kxg2 {[%clk 0:02:01.7]} 16... Qg4 {[%clk
0:01:15.7]} 17. Ne2 {[%clk 0:01:56.6]} 17... Qxe4 {[%clk 0:01:05.3]} 18. Rac1
{[%clk 0:01:51.8]} 18... Qg4 {[%clk 0:00:59.4]} 19. h3 {[%clk 0:01:48.3]} 19...
Qd7 {[%clk 0:00:57.4]} 20. Nc3 {[%clk 0:01:42.5]} 20... h6 {[%clk 0:00:55.1]}
21. c5 {[%clk 0:01:34.1]} 21... f5 {[%clk 0:00:52.6]} 22. a4 {[%clk 0:01:32.5]}
22... g5 {[%clk 0:00:45.9]} 23. cxd6 {[%clk 0:01:21.1]} 23... cxd6 {[%clk
0:00:45]} 24. Nb5 {[%clk 0:01:21.1]} 24... Rec8 {[%clk 0:00:41.5]} 25. Rxc8+
{[%clk 0:00:58.4]} 25... Rxc8 {[%clk 0:00:40.2]} 26. Nxa7 {[%clk 0:00:58.1]}
26... Ra8 {[%clk 0:00:40.2]} 27. Qe3 {[%clk 0:00:41.5]} 27... e4 {[%clk
0:00:35.1]} 28. Nd4 {[%clk 0:00:39.3]} 28... Rxa7 {[%clk 0:00:29.6]} 29. Nxf5
{[%clk 0:00:33.3]} 29... Nxf5 {[%clk 0:00:19.2]} 30. Qxa7 {[%clk 0:00:32.2]}
30... Bxb2 {[%clk 0:00:19.5]} 31. Rxe4 {[%clk 0:00:32]} 31... Nf6 {[%clk
0:00:17.1]} 32. Qb8+ {[%clk 0:00:30.3]} 32... Kg7 {[%clk 0:00:15.6]} 33. Rc4
{[%clk 0:00:29.7]} 33... Nxd5 {[%clk 0:00:13.8]} 34. Rc8 {[%clk 0:00:25.4]}
34... Kg6 {[%clk 0:00:11.5]} 35. Rd8 {[%clk 0:00:22.1]} 35... Qe6 {[%clk
0:00:09.6]} 36. Re8 {[%clk 0:00:19]} 36... Qd7 {[%clk 0:00:05.8]} 37. Rg8+
{[%clk 0:00:17.5]} 37... Bg7 {[%clk 0:00:04]} 38. b5 {[%clk 0:00:13.8]} 38...
Qe6 {[%clk 0:00:03.5]} 39. Re8 {[%clk 0:00:13.4]} 39... Qf7 {[%clk 0:00:02.9]}
40. Re2 {[%clk 0:00:07.2]} 40... Nd4 {[%clk 0:00:01.8]} 41. Rd2 {[%clk
0:00:01.3]} 41... Nf5 {[%clk 0:00:02.7]} 0-1

[Event "*** SCC Grand Prix: Titled Tuesday Blitz"]
[Site "Chess.com"]
[Date "2020.06.02"]
[Round "6"]
[White "anastasiyakarlovych"]
[Black "Azatic"]
[Result "0-1"]
[WhiteElo "1945"]
[BlackElo "2442"]
[TimeControl "180+1"]
[EndTime "11:10:02 PDT"]
[Termination "Azatic won on time"]

1. e4 {[%clk 0:03:00.9]} 1... c5 {[%clk 0:03:00]} 2. Nf3 {[%clk 0:02:59.9]} 2...
e6 {[%clk 0:03:00]} 3. c3 {[%clk 0:02:53.3]} 3... Nf6 {[%clk 0:02:59]} 4. e5
{[%clk 0:02:52.2]} 4... Nd5 {[%clk 0:02:59.3]} 5. d4 {[%clk 0:02:51]} 5... cxd4
{[%clk 0:03:00.2]} 6. cxd4 {[%clk 0:02:50.9]} 6... d6 {[%clk 0:03:00.5]} 7. a3
{[%clk 0:02:51]} 7... dxe5 {[%clk 0:02:59.5]} 8. dxe5 {[%clk 0:02:50.5]} 8...
Bc5 {[%clk 0:02:59.5]} 9. Bd3 {[%clk 0:02:45.5]} 9... O-O {[%clk 0:02:58.9]} 10.
O-O {[%clk 0:02:39.8]} 10... Nc6 {[%clk 0:02:58.7]} 11. b4 {[%clk 0:02:27.7]}
11... Be7 {[%clk 0:02:55.5]} 12. Bb2 {[%clk 0:02:18.2]} 12... g6 {[%clk
0:01:47.4]} 13. Be4 {[%clk 0:01:55.4]} 13... b6 {[%clk 0:01:41.2]} 14. Qc2
{[%clk 0:01:37.8]} 14... Bb7 {[%clk 0:01:38.9]} 15. Rd1 {[%clk 0:01:36.4]} 15...
Rc8 {[%clk 0:01:23.4]} 16. Nc3 {[%clk 0:01:33.8]} 16... Qe8 {[%clk 0:01:23.5]}
17. Qb3 {[%clk 0:00:57]} 17... Nxc3 {[%clk 0:01:23.1]} 18. Bxc3 {[%clk
0:00:56.4]} 18... Na5 {[%clk 0:01:15.8]} 19. bxa5 {[%clk 0:00:53.5]} 19... Bxe4
{[%clk 0:01:15]} 20. Nd4 {[%clk 0:00:48.3]} 20... Bc5 {[%clk 0:01:09.1]} 21.
axb6 {[%clk 0:00:43.4]} 21... axb6 {[%clk 0:01:09.4]} 22. Nb5 {[%clk 0:00:40]}
22... Qe7 {[%clk 0:01:02]} 23. Bb4 {[%clk 0:00:32.1]} 23... Bxb4 {[%clk
0:00:20.5]} 24. Qxb4 {[%clk 0:00:31.1]} 24... Qxb4 {[%clk 0:00:09.4]} 25. axb4
{[%clk 0:00:30.6]} 25... Bd5 {[%clk 0:00:08.1]} 26. Nd6 {[%clk 0:00:29.9]} 26...
Rc3 {[%clk 0:00:06]} 27. Ra7 {[%clk 0:00:28.9]} 27... Rb3 {[%clk 0:00:04.8]} 28.
b5 {[%clk 0:00:27.6]} 28... Rb2 {[%clk 0:00:05.2]} 29. h3 {[%clk 0:00:26.4]}
29... h5 {[%clk 0:00:05.7]} 30. Re7 {[%clk 0:00:24.4]} 30... h4 {[%clk 0:00:06]}
31. Rc1 {[%clk 0:00:21.3]} 31... Kg7 {[%clk 0:00:05.9]} 32. Rcc7 {[%clk
0:00:20.8]} 32... Rb1+ {[%clk 0:00:06.2]} 33. Kh2 {[%clk 0:00:20.1]} 33... Rf1
{[%clk 0:00:04.8]} 34. Rxf7+ {[%clk 0:00:20.3]} 34... Rxf7 {[%clk 0:00:05.7]}
35. Rxf7+ {[%clk 0:00:20.5]} 35... Kh6 {[%clk 0:00:05.6]} 36. Rf6 {[%clk
0:00:20.2]} 36... Kh5 {[%clk 0:00:03.2]} 37. Rf7 {[%clk 0:00:19.6]} 37... Rb1
{[%clk 0:00:03.4]} 38. Rh7+ {[%clk 0:00:18.3]} 38... Kg5 {[%clk 0:00:03.8]} 39.
Rf7 {[%clk 0:00:09.9]} 39... Kh6 {[%clk 0:00:04.2]} 40. g3 {[%clk 0:00:07.8]}
40... Re1 {[%clk 0:00:04.5]} 41. gxh4 {[%clk 0:00:07.2]} 41... Rh1+ {[%clk
0:00:04.5]} 42. Kg3 {[%clk 0:00:07.4]} 42... Re1 {[%clk 0:00:05.4]} 43. Rf8
{[%clk 0:00:06.3]} 43... Rg1+ {[%clk 0:00:04.5]} 44. Kf4 {[%clk 0:00:05.7]}
44... Kg7 {[%clk 0:00:05]} 45. Rf7+ {[%clk 0:00:05.6]} 45... Kh6 {[%clk
0:00:05.1]} 46. Rf8 {[%clk 0:00:05.3]} 46... Rf1 {[%clk 0:00:04.8]} 47. Rh8+
{[%clk 0:00:04.4]} 47... Kg7 {[%clk 0:00:04.9]} 48. Rd8 {[%clk 0:00:02.8]} 48...
Rxf2+ {[%clk 0:00:05.2]} 49. Kg4 {[%clk 0:00:02.7]} 49... Rg2+ {[%clk
0:00:05.4]} 50. Kf4 {[%clk 0:00:02]} 50... Kh6 {[%clk 0:00:05.8]} 51. Rd7 {[%clk
0:00:02.1]} 51... Rf2+ {[%clk 0:00:05.7]} 0-1

[Event "*** SCC Grand Prix: Titled Tuesday Blitz"]
[Site "Chess.com"]
[Date "2020.06.02"]
[Round "6"]
[White "BelaKis"]
[Black "Baron_von_Koenig"]
[Result "0-1"]
[WhiteElo "2198"]
[BlackElo "2425"]
[TimeControl "180+1"]
[EndTime "11:10:03 PDT"]
[Termination "Baron_von_Koenig won by checkmate"]

1. Nf3 {[%clk 0:03:00.9]} 1... Nc6 {[%clk 0:02:58.4]} 2. g3 {[%clk 0:02:47.4]}
2... e5 {[%clk 0:02:57.5]} 3. d3 {[%clk 0:02:47.7]} 3... f5 {[%clk 0:02:55.7]}
4. Bg2 {[%clk 0:02:47.5]} 4... Nf6 {[%clk 0:02:56.2]} 5. O-O {[%clk 0:02:47.3]}
5... Bc5 {[%clk 0:02:54.3]} 6. a3 {[%clk 0:02:46.3]} 6... Bb6 {[%clk 0:02:50.4]}
7. c4 {[%clk 0:02:41.2]} 7... O-O {[%clk 0:02:47.4]} 8. Nc3 {[%clk 0:02:36.8]}
8... d6 {[%clk 0:02:46.5]} 9. e3 {[%clk 0:02:33]} 9... Qe8 {[%clk 0:02:45.8]}
10. d4 {[%clk 0:02:32.7]} 10... Qh5 {[%clk 0:02:33.6]} 11. b4 {[%clk 0:02:27]}
11... a6 {[%clk 0:02:17.2]} 12. c5 {[%clk 0:02:25.1]} 12... Ba7 {[%clk
0:02:17.3]} 13. Qb3+ {[%clk 0:01:56.6]} 13... Kh8 {[%clk 0:02:16.2]} 14. Nd5
{[%clk 0:01:56.8]} 14... Be6 {[%clk 0:02:09.9]} 15. Nxf6 {[%clk 0:01:55.7]}
15... Rxf6 {[%clk 0:02:08]} 16. d5 {[%clk 0:01:55]} 16... e4 {[%clk 0:02:00.9]}
17. Nh4 {[%clk 0:01:35.8]} 17... Ne5 {[%clk 0:01:38.9]} 18. dxe6 {[%clk
0:01:24.7]} 18... g5 {[%clk 0:01:38.6]} 19. Qd1 {[%clk 0:01:10.6]} 19... Qxd1
{[%clk 0:01:33.8]} 20. Rxd1 {[%clk 0:01:10.5]} 20... gxh4 {[%clk 0:01:34.2]} 21.
cxd6 {[%clk 0:00:57.3]} 21... cxd6 {[%clk 0:01:25.2]} 22. Bb2 {[%clk 0:00:56.8]}
22... Re8 {[%clk 0:01:25.6]} 23. Rxd6 {[%clk 0:00:54]} 23... Rfxe6 {[%clk
0:01:25.7]} 24. Rad1 {[%clk 0:00:51.5]} 24... hxg3 {[%clk 0:01:18.8]} 25. hxg3
{[%clk 0:00:50.9]} 25... Kg7 {[%clk 0:01:04.1]} 26. Rxe6 {[%clk 0:00:44.5]}
26... Rxe6 {[%clk 0:01:03.8]} 27. Rd7+ {[%clk 0:00:45.1]} 27... Kg6 {[%clk
0:00:59]} 28. Rxb7 {[%clk 0:00:43.6]} 28... Bb6 {[%clk 0:00:59.1]} 29. Bxe5
{[%clk 0:00:42.5]} 29... Rxe5 {[%clk 0:00:56.5]} 30. Rxb6+ {[%clk 0:00:42.6]}
30... Kg5 {[%clk 0:00:56.9]} 31. Rxa6 {[%clk 0:00:40.9]} 31... Rd5 {[%clk
0:00:57]} 32. Bf1 {[%clk 0:00:40.5]} 32... Rd1 {[%clk 0:00:56.3]} 33. Kg2 {[%clk
0:00:40.7]} 33... h5 {[%clk 0:00:55.8]} 34. b5 {[%clk 0:00:40.5]} 34... Rd2
{[%clk 0:00:45.5]} 35. b6 {[%clk 0:00:39.4]} 35... Rb2 {[%clk 0:00:45.4]} 36. a4
{[%clk 0:00:39.3]} 36... h4 {[%clk 0:00:40.1]} 37. gxh4+ {[%clk 0:00:38.7]}
37... Kh5 {[%clk 0:00:40.1]} 38. a5 {[%clk 0:00:39.3]} 38... f4 {[%clk
0:00:40.3]} 39. exf4 {[%clk 0:00:39]} 39... e3 {[%clk 0:00:40.5]} 40. Ra7 {[%clk
0:00:38.2]} 40... Rxf2+ {[%clk 0:00:39.3]} 41. Kg1 {[%clk 0:00:38.3]} 41... Rxf4
{[%clk 0:00:38.8]} 42. Be2+ {[%clk 0:00:33.7]} 42... Kxh4 {[%clk 0:00:38.3]} 43.
b7 {[%clk 0:00:31.6]} 43... Rb4 {[%clk 0:00:37.8]} 44. a6 {[%clk 0:00:29.4]}
44... Kg3 {[%clk 0:00:37.8]} 45. Ra8 {[%clk 0:00:26]} 45... Rb1+ {[%clk
0:00:37.7]} 46. Bf1 {[%clk 0:00:26.3]} 46... e2 {[%clk 0:00:37.9]} 47. Rg8+
{[%clk 0:00:26.3]} 47... Kh4 {[%clk 0:00:37]} 48. Rh8+ {[%clk 0:00:20.7]} 48...
Kg3 {[%clk 0:00:36.5]} 49. Rg8+ {[%clk 0:00:20.8]} 49... Kh4 {[%clk 0:00:36.6]}
50. Rh8+ {[%clk 0:00:21]} 50... Kg5 {[%clk 0:00:36.1]} 51. Rf8 {[%clk
0:00:16.1]} 51... e1=Q {[%clk 0:00:34]} 52. b8=Q {[%clk 0:00:15.5]} 52... Qe3+
{[%clk 0:00:30.1]} 53. Kh1 {[%clk 0:00:13]} 53... Rxb8 {[%clk 0:00:26.7]} 54.
Rxb8 {[%clk 0:00:13.9]} 54... Qe4+ {[%clk 0:00:22.7]} 55. Bg2 {[%clk 0:00:14.1]}
55... Qe1+ {[%clk 0:00:22.6]} 56. Kh2 {[%clk 0:00:13.8]} 56... Qh4+ {[%clk
0:00:22.1]} 57. Kg1 {[%clk 0:00:13.8]} 57... Qd4+ {[%clk 0:00:21.6]} 58. Kh1
{[%clk 0:00:13.5]} 58... Qd1+ {[%clk 0:00:21.2]} 59. Kh2 {[%clk 0:00:13.6]}
59... Qd6+ {[%clk 0:00:21.1]} 60. Kh1 {[%clk 0:00:12.9]} 60... Qxb8 {[%clk
0:00:21.5]} 61. Bb7 {[%clk 0:00:12.1]} 61... Qa7 {[%clk 0:00:21.3]} 62. Kg2
{[%clk 0:00:12]} 62... Kf4 {[%clk 0:00:21.6]} 63. Kh3 {[%clk 0:00:11.8]} 63...
Qe3+ {[%clk 0:00:21.8]} 64. Kh4 {[%clk 0:00:11.9]} 64... Qg3+ {[%clk 0:00:21.8]}
65. Kh5 {[%clk 0:00:11.7]} 65... Qg5# {[%clk 0:00:22.1]} 0-1

[Event "*** SCC Grand Prix: Titled Tuesday Blitz"]
[Site "Chess.com"]
[Date "2020.06.02"]
[Round "6"]
[White "youngKID"]
[Black "elohunter1999"]
[Result "1-0"]
[WhiteElo "2762"]
[BlackElo "2508"]
[TimeControl "180+1"]
[EndTime "11:10:04 PDT"]
[Termination "youngKID won on time"]

1. Nf3 {[%clk 0:03:00.9]} 1... Nf6 {[%clk 0:02:58.6]} 2. g3 {[%clk 0:03:00.6]}
2... b6 {[%clk 0:02:58.5]} 3. Bg2 {[%clk 0:03:00.3]} 3... Bb7 {[%clk 0:02:59.3]}
4. O-O {[%clk 0:03:00.9]} 4... c5 {[%clk 0:02:59.9]} 5. Ne1 {[%clk 0:03:01.2]}
5... Bxg2 {[%clk 0:02:58.9]} 6. Nxg2 {[%clk 0:03:02.1]} 6... g6 {[%clk
0:02:54.3]} 7. d3 {[%clk 0:03:01.7]} 7... d5 {[%clk 0:02:52.9]} 8. Nc3 {[%clk
0:03:00.1]} 8... Bg7 {[%clk 0:02:52.5]} 9. e4 {[%clk 0:02:59.9]} 9... dxe4
{[%clk 0:02:51]} 10. dxe4 {[%clk 0:02:59.2]} 10... Qxd1 {[%clk 0:02:49.8]} 11.
Rxd1 {[%clk 0:02:59]} 11... Nc6 {[%clk 0:02:50]} 12. f4 {[%clk 0:02:36.6]} 12...
O-O {[%clk 0:02:17.6]} 13. e5 {[%clk 0:02:35.5]} 13... Ne8 {[%clk 0:02:17.5]}
14. Rd7 {[%clk 0:02:01.7]} 14... f6 {[%clk 0:02:08.3]} 15. e6 {[%clk 0:01:57.8]}
15... Rd8 {[%clk 0:01:54.5]} 16. Rxd8 {[%clk 0:01:26.9]} 16... Nxd8 {[%clk
0:01:54.2]} 17. f5 {[%clk 0:01:27.4]} 17... gxf5 {[%clk 0:01:54.2]} 18. Nd5
{[%clk 0:01:26.7]} 18... Nxe6 {[%clk 0:01:35.7]} 19. Nxe7+ {[%clk 0:01:26.5]}
19... Kf7 {[%clk 0:01:35.8]} 20. Nxf5 {[%clk 0:01:27.4]} 20... N8c7 {[%clk
0:01:32.5]} 21. Bf4 {[%clk 0:01:08.2]} 21... Rd8 {[%clk 0:01:21.8]} 22. Re1
{[%clk 0:01:06.1]} 22... Bf8 {[%clk 0:01:01.1]} 23. Bc1 {[%clk 0:00:34.1]} 23...
Nd4 {[%clk 0:00:51.5]} 24. Nxd4 {[%clk 0:00:31.7]} 24... Rxd4 {[%clk 0:00:52.4]}
25. c3 {[%clk 0:00:29.8]} 25... Rd8 {[%clk 0:00:41.8]} 26. Nf4 {[%clk
0:00:25.3]} 26... Be7 {[%clk 0:00:34.4]} 27. Kf2 {[%clk 0:00:21.3]} 27... Nd5
{[%clk 0:00:33.8]} 28. Kf3 {[%clk 0:00:14.6]} 28... Nxf4 {[%clk 0:00:32.8]} 29.
Bxf4 {[%clk 0:00:15.5]} 29... b5 {[%clk 0:00:22.9]} 30. g4 {[%clk 0:00:14.5]}
30... a6 {[%clk 0:00:21.6]} 31. h4 {[%clk 0:00:13.5]} 31... Rd3+ {[%clk
0:00:20.6]} 32. Ke4 {[%clk 0:00:12.5]} 32... Rh3 {[%clk 0:00:20.7]} 33. h5
{[%clk 0:00:12.5]} 33... c4 {[%clk 0:00:18.6]} 34. Kd5 {[%clk 0:00:07.6]} 34...
Rf3 {[%clk 0:00:17.4]} 35. Be3 {[%clk 0:00:03]} 35... f5 {[%clk 0:00:16.8]} 36.
gxf5 {[%clk 0:00:02.5]} 36... Rxf5+ {[%clk 0:00:16.7]} 37. Kc6 {[%clk
0:00:02.6]} 37... Rxh5 {[%clk 0:00:17]} 38. Kb6 {[%clk 0:00:03.1]} 38... Rh2
{[%clk 0:00:16.4]} 39. Bc1 {[%clk 0:00:02.1]} 39... b4 {[%clk 0:00:15.6]} 40.
cxb4 {[%clk 0:00:01.3]} 40... Bxb4 {[%clk 0:00:15.3]} 41. Rf1+ {[%clk
0:00:01.7]} 41... Ke6 {[%clk 0:00:13.9]} 42. Kxa6 {[%clk 0:00:01.7]} 42... c3
{[%clk 0:00:14.1]} 43. bxc3 {[%clk 0:00:01.6]} 43... Rxa2+ {[%clk 0:00:13.5]}
44. Kb5 {[%clk 0:00:02.2]} 44... Bxc3 {[%clk 0:00:13.6]} 45. Kc4 {[%clk
0:00:02.9]} 45... Be5 {[%clk 0:00:12.3]} 46. Be3 {[%clk 0:00:03.1]} 46... h5
{[%clk 0:00:08.7]} 47. Rh1 {[%clk 0:00:02.6]} 47... h4 {[%clk 0:00:04.9]} 48.
Bc5 {[%clk 0:00:02.4]} 48... Bg3 {[%clk 0:00:02.8]} 49. Kd3 {[%clk 0:00:02.8]}
49... Kf5 {[%clk 0:00:02.6]} 50. Be7 {[%clk 0:00:02.5]} 50... Kg4 {[%clk
0:00:02.4]} 51. Bxh4 {[%clk 0:00:02.7]} 51... Bxh4 {[%clk 0:00:02.5]} 52. Rg1+
{[%clk 0:00:03.4]} 52... Kf3 {[%clk 0:00:01.7]} 53. Rg8 {[%clk 0:00:04.3]} 1-0

[Event "*** SCC Grand Prix: Titled Tuesday Blitz"]
[Site "Chess.com"]
[Date "2020.06.02"]
[Round "6"]
[White "Godzillator"]
[Black "MiroVlasenko"]
[Result "1-0"]
[WhiteElo "2468"]
[BlackElo "2620"]
[TimeControl "180+1"]
[EndTime "11:10:06 PDT"]
[Termination "Godzillator won by resignation"]

1. d4 {[%clk 0:03:00.9]} 1... f5 {[%clk 0:02:59.2]} 2. c4 {[%clk 0:03:01.2]}
2... Nf6 {[%clk 0:02:59.5]} 3. Nc3 {[%clk 0:03:01]} 3... e6 {[%clk 0:02:59.7]}
4. g3 {[%clk 0:03:00.8]} 4... Bb4 {[%clk 0:02:52.7]} 5. Bd2 {[%clk 0:03:00.4]}
5... d5 {[%clk 0:02:51.5]} 6. Bg2 {[%clk 0:02:59.7]} 6... O-O {[%clk 0:02:51]}
7. Nf3 {[%clk 0:02:59.5]} 7... c6 {[%clk 0:02:45.7]} 8. b3 {[%clk 0:02:57.2]}
8... Bd6 {[%clk 0:02:41.2]} 9. O-O {[%clk 0:02:55.1]} 9... Ne4 {[%clk
0:02:35.1]} 10. Qc2 {[%clk 0:02:50.8]} 10... Nd7 {[%clk 0:02:33.7]} 11. Bf4
{[%clk 0:02:49.9]} 11... Be7 {[%clk 0:02:33.4]} 12. Ne5 {[%clk 0:02:47.7]} 12...
Ndf6 {[%clk 0:02:24.8]} 13. f3 {[%clk 0:02:46.2]} 13... Nxc3 {[%clk 0:02:22]}
14. Qxc3 {[%clk 0:02:46.4]} 14... c5 {[%clk 0:02:19.2]} 15. dxc5 {[%clk
0:02:38.5]} 15... Bxc5+ {[%clk 0:02:15.3]} 16. Kh1 {[%clk 0:02:38]} 16... Nh5
{[%clk 0:02:05.4]} 17. Rad1 {[%clk 0:02:26]} 17... d4 {[%clk 0:01:56.9]} 18. Qc1
{[%clk 0:02:20.5]} 18... Nxf4 {[%clk 0:01:55]} 19. Qxf4 {[%clk 0:02:14.5]} 19...
Qf6 {[%clk 0:01:38.2]} 20. Nd3 {[%clk 0:02:00.4]} 20... Bb6 {[%clk 0:01:34.5]}
21. c5 {[%clk 0:01:48.8]} 21... Bd8 {[%clk 0:01:34.1]} 22. e3 {[%clk 0:01:37.4]}
22... dxe3 {[%clk 0:01:05.8]} 23. Qxe3 {[%clk 0:01:37.4]} 23... e5 {[%clk
0:00:52.9]} 24. Qxe5 {[%clk 0:01:33]} 24... Qxe5 {[%clk 0:00:52.1]} 25. Nxe5
{[%clk 0:01:32.8]} 25... f4 {[%clk 0:00:52.6]} 26. Rfe1 {[%clk 0:01:10.5]} 26...
Ba5 {[%clk 0:00:39.6]} 27. Re4 {[%clk 0:01:05.1]} 27... fxg3 {[%clk 0:00:39.7]}
28. hxg3 {[%clk 0:01:04]} 28... Bf5 {[%clk 0:00:39.8]} 29. Re2 {[%clk
0:00:52.9]} 29... Rad8 {[%clk 0:00:36.3]} 30. Rxd8 {[%clk 0:00:51.8]} 30... Rxd8
{[%clk 0:00:35.5]} 31. f4 {[%clk 0:00:51.7]} 31... Bc8 {[%clk 0:00:20.4]} 32.
Be4 {[%clk 0:00:44.8]} 32... h6 {[%clk 0:00:19.9]} 33. Kg2 {[%clk 0:00:41.1]}
33... Bc3 {[%clk 0:00:19.8]} 34. Ng6 {[%clk 0:00:39.1]} 34... Bg4 {[%clk
0:00:18.7]} 35. Rc2 {[%clk 0:00:35.5]} 35... Bd4 {[%clk 0:00:18.9]} 36. Bxb7
{[%clk 0:00:24.5]} 36... Kf7 {[%clk 0:00:17.9]} 37. Ne5+ {[%clk 0:00:21.5]}
37... Bxe5 {[%clk 0:00:17.5]} 38. fxe5 {[%clk 0:00:21.8]} 38... Re8 {[%clk
0:00:16.5]} 39. Bd5+ {[%clk 0:00:20.6]} 39... Ke7 {[%clk 0:00:16.6]} 40. e6
{[%clk 0:00:20]} 40... Rd8 {[%clk 0:00:16.8]} 41. Bc4 {[%clk 0:00:14.4]} 41...
Bf5 {[%clk 0:00:16.8]} 42. Re2 {[%clk 0:00:12.8]} 42... Rc8 {[%clk 0:00:17.1]}
43. b4 {[%clk 0:00:12.6]} 43... a5 {[%clk 0:00:17.5]} 44. a3 {[%clk 0:00:12.6]}
44... Kf6 {[%clk 0:00:16.4]} 45. e7 {[%clk 0:00:10.9]} 45... Re8 {[%clk
0:00:16.7]} 46. Bb5 {[%clk 0:00:10.9]} 46... Rxe7 {[%clk 0:00:16.8]} 47. Rxe7
{[%clk 0:00:10.1]} 47... Kxe7 {[%clk 0:00:17.7]} 48. bxa5 {[%clk 0:00:09.9]}
48... Kd8 {[%clk 0:00:18.2]} 49. Bc6 {[%clk 0:00:09.4]} 49... Kc7 {[%clk
0:00:18.4]} 50. Bd5 {[%clk 0:00:09.6]} 50... Bc8 {[%clk 0:00:18]} 51. Kf3 {[%clk
0:00:08.5]} 51... g5 {[%clk 0:00:18.4]} 52. Ke4 {[%clk 0:00:07.9]} 52... h5
{[%clk 0:00:18.8]} 53. Ke3 {[%clk 0:00:03.8]} 53... h4 {[%clk 0:00:18.9]} 54.
gxh4 {[%clk 0:00:04]} 54... gxh4 {[%clk 0:00:19.3]} 55. Kf4 {[%clk 0:00:04.5]}
55... h3 {[%clk 0:00:19.3]} 56. Kg3 {[%clk 0:00:04.5]} 56... Kb8 {[%clk
0:00:19.8]} 57. Be4 {[%clk 0:00:03.6]} 57... Ka7 {[%clk 0:00:20]} 58. Bd3 {[%clk
0:00:03.7]} 58... Kb7 {[%clk 0:00:20.3]} 59. Bb5 {[%clk 0:00:03.7]} 59... Ka7
{[%clk 0:00:20.5]} 60. Bf1 {[%clk 0:00:03.5]} 60... Kb7 {[%clk 0:00:20.2]} 61.
Bxh3 {[%clk 0:00:04.1]} 1-0

[Event "*** SCC Grand Prix: Titled Tuesday Blitz"]
[Site "Chess.com"]
[Date "2020.06.02"]
[Round "6"]
[White "beto-betun"]
[Black "Artem_Koval"]
[Result "0-1"]
[WhiteElo "2161"]
[BlackElo "2398"]
[TimeControl "180+1"]
[EndTime "11:10:08 PDT"]
[Termination "Artem_Koval won by resignation"]

1. d4 {[%clk 0:03:00.9]} 1... d5 {[%clk 0:00:14.2]} 2. Nf3 {[%clk 0:02:53.5]}
2... Nf6 {[%clk 0:00:14.1]} 3. g3 {[%clk 0:02:51.6]} 3... Bf5 {[%clk 0:00:14.2]}
4. Bg2 {[%clk 0:02:51.3]} 4... e6 {[%clk 0:00:14.5]} 5. O-O {[%clk 0:02:47.4]}
5... Bd6 {[%clk 0:00:14.9]} 6. c4 {[%clk 0:02:47.3]} 6... c6 {[%clk 0:00:14.6]}
7. Nc3 {[%clk 0:02:33.8]} 7... O-O {[%clk 0:00:14.6]} 8. Nh4 {[%clk 0:02:30]}
8... Bg6 {[%clk 0:00:14.4]} 9. Nxg6 {[%clk 0:02:29.6]} 9... hxg6 {[%clk
0:00:15.3]} 10. e4 {[%clk 0:02:22.8]} 10... dxe4 {[%clk 0:00:15.3]} 11. Nxe4
{[%clk 0:02:23]} 11... Nxe4 {[%clk 0:00:16.2]} 12. Bxe4 {[%clk 0:02:23.4]} 12...
Nd7 {[%clk 0:00:17.1]} 13. Bg2 {[%clk 0:02:19.4]} 13... Nf6 {[%clk 0:00:17.1]}
14. Bd2 {[%clk 0:02:17.7]} 14... Bc7 {[%clk 0:00:17.3]} 15. Bc3 {[%clk
0:02:18.1]} 15... Qd7 {[%clk 0:00:17.4]} 16. Qd2 {[%clk 0:02:15.2]} 16... Rad8
{[%clk 0:00:17.7]} 17. Rad1 {[%clk 0:02:13.1]} 17... Rfe8 {[%clk 0:00:17.5]} 18.
Rfe1 {[%clk 0:02:13.2]} 18... Qe7 {[%clk 0:00:17.7]} 19. b3 {[%clk 0:02:08.7]}
19... Bb6 {[%clk 0:00:17.5]} 20. h4 {[%clk 0:02:02.6]} 20... a6 {[%clk
0:00:17.3]} 21. Qb2 {[%clk 0:02:01.8]} 21... Qc7 {[%clk 0:00:17]} 22. a4 {[%clk
0:01:59.1]} 22... Ba5 {[%clk 0:00:15.3]} 23. b4 {[%clk 0:01:49.4]} 23... Bb6
{[%clk 0:00:15.2]} 24. c5 {[%clk 0:01:50]} 24... Ba7 {[%clk 0:00:15.5]} 25. Rd2
{[%clk 0:01:43.3]} 25... Nd5 {[%clk 0:00:15.7]} 26. Rb1 {[%clk 0:01:40.5]} 26...
Bb8 {[%clk 0:00:15.3]} 27. b5 {[%clk 0:01:37.9]} 27... axb5 {[%clk 0:00:14.8]}
28. axb5 {[%clk 0:01:38.2]} 28... Qe7 {[%clk 0:00:13.2]} 29. bxc6 {[%clk
0:01:29]} 29... bxc6 {[%clk 0:00:14.1]} 30. Rdd1 {[%clk 0:01:29.3]} 30... Bc7
{[%clk 0:00:11.1]} 31. Bd2 {[%clk 0:01:26.8]} 31... Rd7 {[%clk 0:00:10.8]} 32.
Re1 {[%clk 0:01:08.7]} 32... Qf6 {[%clk 0:00:10.6]} 33. Be3 {[%clk 0:01:01.9]}
33... Red8 {[%clk 0:00:09.1]} 34. Bg5 {[%clk 0:00:59.1]} 34... Qf5 {[%clk
0:00:06.6]} 35. Bxd8 {[%clk 0:00:58.7]} 35... Rxd8 {[%clk 0:00:07.5]} 36. Qe2
{[%clk 0:00:46.3]} 36... Nc3 {[%clk 0:00:05.8]} 37. Qe3 {[%clk 0:00:42.9]} 37...
Nxb1 {[%clk 0:00:05]} 38. Be4 {[%clk 0:00:39.6]} 38... Qf6 {[%clk 0:00:04.1]}
39. Bxb1 {[%clk 0:00:38.3]} 39... Qxd4 {[%clk 0:00:04.4]} 40. Be4 {[%clk
0:00:27.1]} 40... Qxe3 {[%clk 0:00:02.9]} 41. Rxe3 {[%clk 0:00:27.6]} 41... f5
{[%clk 0:00:02.4]} 42. Bxc6 {[%clk 0:00:26.9]} 42... Kf7 {[%clk 0:00:03.3]} 43.
Bf3 {[%clk 0:00:20.5]} 43... Rd2 {[%clk 0:00:02.9]} 44. Rc3 {[%clk 0:00:19.9]}
44... Ke7 {[%clk 0:00:02.8]} 45. c6 {[%clk 0:00:19.6]} 45... e5 {[%clk
0:00:02.8]} 46. Kf1 {[%clk 0:00:13.5]} 46... e4 {[%clk 0:00:02.8]} 47. Be2
{[%clk 0:00:14.4]} 47... Kd8 {[%clk 0:00:02.9]} 48. Bc4 {[%clk 0:00:12.8]} 48...
Bb6 {[%clk 0:00:02]} 49. Bf7 {[%clk 0:00:10.9]} 49... Rxf2+ {[%clk 0:00:02]} 50.
Ke1 {[%clk 0:00:10.6]} 50... Kc7 {[%clk 0:00:02.9]} 51. Bxg6 {[%clk 0:00:10.4]}
51... Rg2 {[%clk 0:00:01.5]} 52. Bxf5 {[%clk 0:00:10.4]} 52... e3 {[%clk
0:00:01.9]} 53. g4 {[%clk 0:00:09.2]} 53... Ba5 {[%clk 0:00:02.1]} 54. Kf1
{[%clk 0:00:04.2]} 54... Bxc3 {[%clk 0:00:03]} 55. Kxg2 {[%clk 0:00:04.5]} 55...
e2 {[%clk 0:00:03.2]} 0-1